Cogmind - Beta 15 @@@ ROGUE MODE // 2025.06.02 @ 19:35:21 Player: CL-1C0 Result: Self-destructed Performance ------------- Evolutions (6) 3000 Regions Visited (10) 2000 Robots Destroyed (11) 55 Value Destroyed (115) 115 Prototype IDs (0) 0 Alien Tech Used (0) 0 Bonus (-79) -79 TOTAL SCORE: 5091 Bonus ------- Pacifist 200 Follower Combat Kills 120 Friendly Fire -399 Cogmind --------- Core Integrity 924/1150 Matter 290/300 Energy 100/100 System Corruption 0% Temperature Cool (0) Movement Flying (40) Location -4/Upper Caves Parts ------- > --- POWER (1) -------- (None) > --- PROPULSION (4) --- Nuclear Pulse Thruster > --- UTILITY (12) ----- Improved Signal Interpreter Advanced Signal Interpreter Transport Network Coupler Advanced Targeting Computer Hacking Suite > --- WEAPON (2) ------- Spear > --- INVENTORY (5) ---- Guided EMP Blaster Peak State ------------ > --- POWER ------------ Micro Fission Core > --- PROPULSION ------- Cesium-ion Thruster Cesium-ion Thruster Nuclear Pulse Array > --- UTILITY ---------- Power Amplifier Improved Heat Sink Advanced Sensor Array Advanced Sensor Array Improved Signal Interpreter Advanced Signal Interpreter Transport Network Coupler Advanced Targeting Computer Hacking Suite Hacking Suite System Shield System Shield > --- WEAPON ----------- Battle Rifle Spear > --- INVENTORY -------- Nuclear Pulse Thruster Guided EMP Blaster Spear [Rating: 74] Favorites ----------- Power Micro Fission Core Engine Ion Engine Power Core Micro Fission Core Propulsion Cesium-ion Thruster Treads Light Treads Leg Aluminum Leg Flight Unit Cesium-ion Thruster Utility Signal Interpreter Device Improved Heat Sink Storage Small Storage Unit Processor Signal Interpreter Hackware Hacking Suite Protection Improved Light Armor Plating Weapon Spear Energy Gun EM Pulse Gun Ballistic Gun Battle Rifle Impact Weapon Flail Piercing Weapon Spear Build | -11 -10 -9 -8 -7 -7 -7 -6 -5 -4 -4 ------- Run | Yrd Mat Mat Mat Fac Was Fac Fac Fac Fac Upp Slots Evolved 12 | . . 2 2 2 . . 2 2 2 . Power . | . . . . . . . . . . . Propulsion 2 | . . . 2 . . . . . . . Utility 10 | . . 2 . 2 . . 2 2 2 . Weapon . | . . . . . . . . . . . Parts Attached 29 | . 2 3 . . . 3 7 10 4 . Power 1 | . . . . . . . . 1 . . Engine . | . . . . . . . . . . . Core 1 | . . . . . . . . 1 . . Reactor . | . . . . . . . . . . . Propulsion 8 | . 2 . . . . 2 2 1 1 . Treads 2 | . 2 . . . . . . . . . Leg . | . . . . . . . . . . . Wheel . | . . . . . . . . . . . Hover . | . . . . . . . . . . . Flight 6 | . . . . . . 2 2 1 1 . Utility 16 | . . 2 . . . 1 3 8 2 . Device 5 | . . 1 . . . . 1 1 2 . Storage . | . . . . . . . . . . . Processor 6 | . . 1 . . . 1 1 3 . . Hackware 4 | . . . . . . . . 4 . . Protection 1 | . . . . . . . 1 . . . Artifact . | . . . . . . . . . . . Weapon 4 | . . 1 . . . . 2 . 1 . Energy Gun . | . . . . . . . . . . . Energy Cannon . | . . . . . . . . . . . Ballistic Gun 1 | . . . . . . . 1 . . . Ballistic Cannon . | . . . . . . . . . . . Launcher . | . . . . . . . . . . . Special Weapon . | . . . . . . . . . . . Impact Weapon 1 | . . 1 . . . . . . . . Slashing Weapon . | . . . . . . . . . . . Piercing Weapon 2 | . . . . . . . 1 . 1 . Special Melee Weapon . | . . . . . . . . . . . Unidentified Prototypes . | . . . . . . . . . . . Parts Lost 20 | . . . 4 . . . . 2 14 . Power 1 | . . . . . . . . . 1 . Propulsion 7 | . . . 2 . . . . 1 4 . Utility 9 | . . . 1 . . . . 1 7 . Weapon 3 | . . . 1 . . . . . 2 . Highest Loss Streak 12 | . . . 4 . . . . 2 12 . To Critical Strikes . | . . . . . . . . . . . Average Backups 2 | . 2 . 1 1 2 2 3 3 2 1 Power . | . . . . . . . . . . . Propulsion . | . 1 . . . . . . . . . Utility 1 | . . . 1 1 2 2 2 1 . . Weapon . | . . . . . . . 1 2 1 1 Tool/Special . | . . . . . . . . . . . Unused Backups 12 | . 10 . . . . . . . 1 1 Power 2 | . 2 . . . . . . . . . Propulsion 4 | . 4 . . . . . . . . . Utility 2 | . 1 . . . . . . . 1 . Weapon 4 | . 3 . . . . . . . . 1 Tool/Special . | . . . . . . . . . . . Average Slot Usage (%) 49 | . 50 46 31 7 7 7 45 81 88 33 Core 1 | . . . . . . . . 4 4 . Treads 4 | . 16 22 10 . . . . . . . Flight 9 | . . . . . . 5 21 22 16 2 Device 6 | . . 7 5 . . . 3 8 17 . Processor 11 | . . 9 9 7 7 2 6 16 21 21 Hackware 5 | . . . . . . . . 12 19 5 Ballistic Gun 1 | . . . . . . . 3 5 4 . Impact Weapon 1 | . . 8 6 . . . . . . . Piercing Weapon 2 | . . . . . . . 4 5 3 5 Peak Build Rating 74 | . 6 6 6 1 1 7 28 60 74 25 Average Rating 25 | . 3 5 4 1 1 3 20 45 66 23 On Entrance 12 | 6 6 2 6 1 1 1 7 28 60 20 Naked Turns 1 | . . . . . . 1 . . . . Heaviest Build 13 | 13 13 3 3 . . . 8 13 13 2 Greatest Support 40 | 20 20 40 3 3 3 10 20 21 23 6 Greatest Overweight (x) . | . . . . . . . . . . . Average Overweight (x) . | . . . . . . . . . . . Largest Inventory Capacity 8 | . 8 5 5 5 5 5 5 5 5 5 Average Capacity 5 | . 5 5 5 5 5 5 5 5 5 5 Most Carried 6 | . 6 1 1 2 2 3 5 5 5 3 Average Carried 2 | . 1 . 1 1 2 2 3 4 4 2 Final Capacity 8 | 8 5 5 5 5 5 5 5 5 5 5 Final Carried 6 | 6 . 1 1 2 2 2 5 5 3 2 Class Distribution -------------------- 52% | Mutant 27% | Hacker-Scout 19% | Scavenger-Sprinter Dominant Class ---------------- Mutant | -10/Materials Mutant | -9/Materials Mutant | -8/Materials Mutant | -7/Factory Mutant | -7/Waste Mutant | -7/Factory Scavenger-Sprinter | -6/Factory Hacker-Scout | -5/Factory Hacker-Scout | -4/Factory Mutant | -4/Upper Caves Resources | -11 -10 -9 -8 -7 -7 -7 -6 -5 -4 -4 ----------- Run | Yrd Mat Mat Mat Fac Was Fac Fac Fac Fac Upp Matter Collected 470 | 200 . 50 . . . . 90 58 72 . Remotely . | . . . . . . . . . . . Salvage Created 373 | . . 89 . . . . 143 58 83 . Parts 21 | . . . . . . . 5 13 3 . Haulers Intercepted 2 | . . . . . . . 1 . 1 . Recyclers Shooed . | . . . . . . . . . . . Parts Field Recycled . | . . . . . . . . . . . Retrieved Matter . | . . . . . . . . . . . Parts Self-Destructed . | . . . . . . . . . . . Prevented . | . . . . . . . . . . . Kills | -11 -10 -9 -8 -7 -7 -7 -6 -5 -4 -4 ------- Run | Yrd Mat Mat Mat Fac Was Fac Fac Fac Fac Upp Combat Hostiles Destroyed 2 | . . 2 . . . . . . . . Melee 1 | . . 1 . . . . . . . . Classes Destroyed 5 | . . 3 . . . . 1 1 . . Worker 1 | . . 1 . . . . . . . . Hauler 2 | . . . . . . . 1 . 1 . Recycler 1 | . . 1 . . . . . . . . Operator 3 | . . . . . . . . 3 . . Swarmer 2 | . . 2 . . . . . . . . Wasp 2 | . . . . . . . 2 . . . Best Kill Streak 4 | . . 4 . . . . 1 2 1 . Combat Bots Only 2 | . . 2 . . . . . . . . Max Kills in Single Turn 1 | . . 1 . . . . 1 1 1 . Gunslinging . | . . . . . . . . . . . Exploded . | . . . . . . . . . . . Melee 1 | . . 1 . . . . . . . . Uniques/NPCs Destroyed . | . . . . . . . . . . . Combat | -11 -10 -9 -8 -7 -7 -7 -6 -5 -4 -4 -------- Run | Yrd Mat Mat Mat Fac Was Fac Fac Fac Fac Upp Hostile Shots Fired 282 | . 8 50 103 6 . . 12 . 103 . Missed 135 | . 5 18 55 2 . . 5 . 50 . Hits 147 | . 3 32 48 4 . . 7 . 53 . Projectile 147 | . 3 32 48 4 . . 7 . 53 . Critical Strikes 4 | . . . 3 . . . . . 1 . Damage Taken 2013 | . 34 269 557 59 . . 63 216 815 . Core 792 | . 10 51 360 59 . . 17 69 226 . Absorbed by Shields . | . . . . . . . . . . . Core Remaining (%) 85 | 100 96 87 34 . . 91 98 93 . . Volleys Fired . | . . . . . . . . . . . Largest . | . . . . . . . . . . . Hottest . | . . . . . . . . . . . Shots Fired . | . . . . . . . . . . . Gun . | . . . . . . . . . . . Cannon . | . . . . . . . . . . . Launcher . | . . . . . . . . . . . Special . | . . . . . . . . . . . Kinetic . | . . . . . . . . . . . Thermal . | . . . . . . . . . . . Explosive . | . . . . . . . . . . . Electromagnetic . | . . . . . . . . . . . Robot Hit Streak . | . . . . . . . . . . . Robot Miss Streak . | . . . . . . . . . . . Penetration Max . | . . . . . . . . . . . Secondary Targets . | . . . . . . . . . . . Shots Hit Robots 27 | . . 4 . . . . 12 4 7 . Core Hits 9 | . . 1 . . . . 4 2 2 . Critical Kills . | . . . . . . . . . . . Critical Parts Destroyed . | . . . . . . . . . . . Critical Strikes 2 | . . . . . . . 1 1 . . Impale 2 | . . . . . . . 1 1 . . Melee Attacks 55 | . . 7 . . . . 16 16 16 . Impact 7 | . . 7 . . . . . . . . Slashing . | . . . . . . . . . . . Piercing 48 | . . . . . . . 16 16 16 . Sneak Attacks 8 | . . 2 . . . . 4 1 1 . Combat Hostiles . | . . . . . . . . . . . Follow-up Attacks . | . . . . . . . . . . . Damage Inflicted 1316 | . . 272 . . . . 589 179 276 . Guns . | . . . . . . . . . . . Cannons . | . . . . . . . . . . . Explosions . | . . . . . . . . . . . Melee 1313 | . . 269 . . . . 589 179 276 . Ramming 3 | . . 3 . . . . . . . . Kinetic . | . . . . . . . . . . . Thermal . | . . . . . . . . . . . Explosive . | . . . . . . . . . . . Electromagnetic . | . . . . . . . . . . . Impact 269 | . . 269 . . . . . . . . Slashing . | . . . . . . . . . . . Piercing 1044 | . . . . . . . 589 179 276 . Highest Corruption 2 | . . . 2 1 1 1 . . . . Average Corruption 1 | . . . 2 1 1 1 . . . . Corruption Purged . | . . . . . . . . . . . Corruption Blocked . | . . . . . . . . . . . Effects 1 | . . . . . . 1 . . . . Energy Discharges 1 | . . . . . . 1 . . . . Overload Shots . | . . . . . . . . . . . Overflow Damage 286 | . . 145 . . . . 53 63 25 . Projectiles . | . . . . . . . . . . . Explosions . | . . . . . . . . . . . Melee 286 | . . 145 . . . . 53 63 25 . Knockbacks 1 | . . 1 . . . . . . . . Impact 1 | . . 1 . . . . . . . . Kinetic . | . . . . . . . . . . . Secondary . | . . . . . . . . . . . Self-Inflicted Damage . | . . . . . . . . . . . Shots . | . . . . . . . . . . . Rammed 4 | . . 4 . . . . . . . . Targets Rammed 5 | . . 5 . . . . . . . . Kicked . | . . . . . . . . . . . Crushed 1 | . . 1 . . . . . . . . Highest Temperature . | . . . . . . . . . . . Average Temperature . | . . . . . . . . . . . Received Heat Transfer 249 | . 18 12 189 . . . 12 . 18 . Siege Activations . | . . . . . . . . . . . Martial Activations . | . . . . . . . . . . . Shielding Activations . | . . . . . . . . . . . Robots Disrupted . | . . . . . . . . . . . Combat Hostiles . | . . . . . . . . . . . Robots Corrupted 2 | . . 2 . . . . . . . . Combat Hostiles 1 | . . 1 . . . . . . . . Parts Fried . | . . . . . . . . . . . Impact Corruptions 6 | . . 6 . . . . . . . . Robots Melted . | . . . . . . . . . . . Combat Hostiles . | . . . . . . . . . . . Parts Melted . | . . . . . . . . . . . Heat Transferred . | . . . . . . . . . . . Parts Sabotaged . | . . . . . . . . . . . Parts Stolen . | . . . . . . . . . . . Parts Stripped . | . . . . . . . . . . . Power Chain Reactions . | . . . . . . . . . . . Alert | -11 -10 -9 -8 -7 -7 -7 -6 -5 -4 -4 ------- Run | Yrd Mat Mat Mat Fac Was Fac Fac Fac Fac Upp Maximum Alert Level . | . . . . . . . . . . . Low Security (%) 100 | . 100 100 100 100 100 100 100 100 100 . Level 1 . | . . . . . . . . . . . Level 2 . | . . . . . . . . . . . Level 3 . | . . . . . . . . . . . Level 4 . | . . . . . . . . . . . Level 5 . | . . . . . . . . . . . High Security . | . . . . . . . . . . . Max Security . | . . . . . . . . . . . Peak Influence 110 | . . 110 51 15 . 59 52 74 92 . Initial 46 | . . . 46 15 . . 18 . 27 . Average 22 | . . 24 31 6 . 26 20 23 30 . Influence Increases 695 | . . 150 68 . . 69 119 134 155 . Destroy 0b10 Robot/C 100 | . . 40 . . . 20 40 . . . Destroy 0b10 Robot/NC 35 | . . 10 . . . . 10 10 5 . Destroy Leader 46 | . . 10 . . . 10 24 . 2 . Allied During Kill 54 | . . . . . . 24 30 . . . Successful Hack 102 | . . . 8 . . . . 87 7 . Disable Machine 15 | . . 15 . . . . . . . . Destroy Structure 28 | . . . . . . . . 22 6 . Partial Spotted 60 | . . . 15 . . 15 15 15 . . Lose Combat Pursuer 255 | . . 75 45 . . . . . 135 . Influence Decreases 695 | . . 40 143 35 . 30 158 77 212 . Entered New Map 135 | . . . 64 20 . . 21 . 30 . Time Decay 275 | . . 40 40 15 . 30 37 57 56 . Lost Part 185 | . . . 39 . . . . 20 126 . Lost Ally 100 | . . . . . . . 100 . . . Squads Dispatched 10 | . . 1 2 . . . 1 5 1 . Investigation 7 | . . . 2 . . . . 4 1 . Extermination 1 | . . . . . . . . 1 . . Reinforcement 2 | . . 1 . . . . 1 . . . Assault . | . . . . . . . . . . . Garrison . | . . . . . . . . . . . Intercept . | . . . . . . . . . . . Searches Triggered . | . . . . . . . . . . . Construction Impeded . | . . . . . . . . . . . Haulers Reinforced 1 | . . . . . . . 1 . . . Active Scanning Responses . | . . . . . . . . . . . Cargo Convoy Interrupts . | . . . . . . . . . . . Stealth | -11 -10 -9 -8 -7 -7 -7 -6 -5 -4 -4 --------- Run | Yrd Mat Mat Mat Fac Was Fac Fac Fac Fac Upp Distress Signals 4 | . . 1 2 . . . . . 1 . Communications Jammed . | . . . . . . . . . . . Distress Signals . | . . . . . . . . . . . Times Spotted 70 | . 2 16 24 2 . . 4 4 18 . Peak Tracking Total 23 | . 2 12 23 2 . . 2 1 10 . Tactical Retreats 6 | . . 2 1 . . . . . 3 . Traps | -11 -10 -9 -8 -7 -7 -7 -6 -5 -4 -4 ------- Run | Yrd Mat Mat Mat Fac Was Fac Fac Fac Fac Upp Traps Triggered 5 | . . . 1 1 . 1 . 2 . . Indirectly . | . . . . . . . . . . . Trap Hack Attempts . | . . . . . . . . . . . Triggered . | . . . . . . . . . . . Disarmed . | . . . . . . . . . . . Reprogrammed . | . . . . . . . . . . . Reused . | . . . . . . . . . . . Traps Extracted . | . . . . . . . . . . . Installed . | . . . . . . . . . . . Triggered . | . . . . . . . . . . . Machines | -11 -10 -9 -8 -7 -7 -7 -6 -5 -4 -4 ---------- Run | Yrd Mat Mat Mat Fac Was Fac Fac Fac Fac Upp Machines Disabled 1 | . . 1 . . . . . . . . Max in Single Turn 1 | . . 1 . . . . . . . . Machines Repaired . | . . . . . . . . . . . Machines Dismantled . | . . . . . . . . . . . Machines Sabotaged . | . . . . . . . . . . . Overloaded Fab Kills . | . . . . . . . . . . . Hacking | -11 -10 -9 -8 -7 -7 -7 -6 -5 -4 -4 --------- Run | Yrd Mat Mat Mat Fac Was Fac Fac Fac Fac Upp Machines Accessed 10 | . . . 2 . . . . 6 2 . Terminals 10 | . . . 2 . . . . 6 2 . Fabricators . | . . . . . . . . . . . Repair Stations . | . . . . . . . . . . . Recycling Units . | . . . . . . . . . . . Scanalyzers . | . . . . . . . . . . . Garrison Access . | . . . . . . . . . . . Total Hacks 44 | . . . 10 . . . . 25 9 . Successful 13 | . . . 4 . . . . 6 3 . Failed 31 | . . . 6 . . . . 19 6 . Catastrophic 8 | . . . 2 . . . . 5 1 . Database Lockouts . | . . . . . . . . . . . Manual 28 | . . . 7 . . . . 14 7 . Terminals 44 | . . . 10 . . . . 25 9 . Fabricators . | . . . . . . . . . . . Repair Stations . | . . . . . . . . . . . Recycling Units . | . . . . . . . . . . . Scanalyzers . | . . . . . . . . . . . Garrison Access . | . . . . . . . . . . . Terminal Hacks 11 | . . . 4 . . . . 4 3 . Part Schematic 2 | . . . . . . . . 1 1 . Level Access Points 2 | . . . . . . . . 1 1 . Branch Access Points 3 | . . . 2 . . . . 1 . . Terminal Index 1 | . . . . . . . . 1 . . Hauler Manifests 1 | . . . 1 . . . . . . . Zone Layout 2 | . . . 1 . . . . . 1 . Fabricator Hacks . | . . . . . . . . . . . Repair Station Hacks . | . . . . . . . . . . . Recycling Unit Hacks . | . . . . . . . . . . . Scanalyzer . | . . . . . . . . . . . Garrison Access Hacks . | . . . . . . . . . . . Unauthorized Hacks 2 | . . . . . . . . 2 . . Terminals 2 | . . . . . . . . 2 . . Assimilate 1 | . . . . . . . . 1 . . Operators 1 | . . . . . . . . 1 . . Fabricators . | . . . . . . . . . . . Repair Stations . | . . . . . . . . . . . Recycling Units . | . . . . . . . . . . . Scanalyzers . | . . . . . . . . . . . Garrison Access . | . . . . . . . . . . . Data Cores Recovered 1 | . . . . . . . . 1 . . Used 1 | . . . . . . . . 1 . . Hacking Detections 9 | . . . 2 . . . . 5 2 . Full Trace Events 7 | . . . 2 . . . . 4 1 . Feedback Events . | . . . . . . . . . . . Feedback Blocked . | . . . . . . . . . . . Robot Schematics Acquired . | . . . . . . . . . . . Robots Built . | . . . . . . . . . . . Authchips . | . . . . . . . . . . . Time . | . . . . . . . . . . . Total Robot Build Rating . | . . . . . . . . . . . Part Schematics Acquired 1 | . . . . . . . . 1 . . Parts Built . | . . . . . . . . . . . Authchips . | . . . . . . . . . . . Time . | . . . . . . . . . . . Total Part Build Rating . | . . . . . . . . . . . Parts Repaired . | . . . . . . . . . . . Time . | . . . . . . . . . . . Parts Recycled . | . . . . . . . . . . . Recycled Matter . | . . . . . . . . . . . Retrieved Matter . | . . . . . . . . . . . Retrieved Components . | . . . . . . . . . . . Parts Scanalyzed . | . . . . . . . . . . . Part Schematics Acquired . | . . . . . . . . . . . Parts Damaged . | . . . . . . . . . . . Bothacking | -11 -10 -9 -8 -7 -7 -7 -6 -5 -4 -4 ------------ Run | Yrd Mat Mat Mat Fac Was Fac Fac Fac Fac Upp Used RIF Installer . | . . . . . . . . . . . Robots Hacked . | . . . . . . . . . . . Non-combat . | . . . . . . . . . . . Combat . | . . . . . . . . . . . Robot Hacks Applied . | . . . . . . . . . . . Relay Couplers Released . | . . . . . . . . . . . Fabnet Peak Effective % . | . . . . . . . . . . . Robots Rewired . | . . . . . . . . . . . Allies Hacked . | . . . . . . . . . . . Hacks Repelled . | . . . . . . . . . . . Allies | -11 -10 -9 -8 -7 -7 -7 -6 -5 -4 -4 -------- Run | Yrd Mat Mat Mat Fac Was Fac Fac Fac Fac Upp Total Allies 21 | . . . . . 20 . . 1 . . Largest Group 20 | . . . . . 20 9 8 . . . Highest-Rated Group 465 | . . . . . 465 147 94 . . . Highest-Rated Ally 35 | . . . . . 35 35 14 . . . Total Orders . | . . . . . . . . . . . Ally Attacks 46 | . . . . . . 9 37 . . . Total Damage 520 | . . . . . . 123 397 . . . Kills 4 | . . . . . . 1 3 . . . Allies Corrupted . | . . . . . . . . . . . Allies Melted . | . . . . . . . . . . . Intel | -11 -10 -9 -8 -7 -7 -7 -6 -5 -4 -4 ------- Run | Yrd Mat Mat Mat Fac Was Fac Fac Fac Fac Upp Active Infowar (turns) 535 | . . 81 44 . . . 10 190 154 56 Sensors 372 | . . 81 44 . . . . 109 138 . T.N.C. 410 | . . . . . . . 10 190 154 56 Robot Analysis Total . | . . . . . . . . . . . Derelict Logs Recovered 1 | . . . . . . . . . . 1 Drone Launches . | . . . . . . . . . . . Drone Recoveries . | . . . . . . . . . . . Exploration | -11 -10 -9 -8 -7 -7 -7 -6 -5 -4 -4 ------------- Run | Yrd Mat Mat Mat Fac Was Fac Fac Fac Fac Upp Turns Passed 928 | . 44 113 84 62 42 83 100 190 154 56 Spaces Moved 1868 | 1 67 148 157 121 71 208 129 482 358 126 Core 624 | . 57 141 157 121 71 34 . . 6 37 Treads 7 | . . 7 . . . . . . . . Legs 11 | 1 10 . . . . . . . . . Wheels . | . . . . . . . . . . . Hover . | . . . . . . . . . . . Flight 1226 | . . . . . . 174 129 482 352 89 Fastest Speed 26 | 120 50 50 50 50 50 32 26 26 27 40 Average Speed 37 | 120 60 55 50 50 50 36 31 27 29 42 Slowest Speed 160 | 120 120 160 50 50 50 50 32 32 50 50 Overloaded Moves . | . . . . . . . . . . . Propulsion Burnouts . | . . . . . . . . . . . Robots Hopped 14 | . . . . . . 3 . 1 9 1 Potential Cave-ins . | . . . . . . . . . . . Cave-ins Triggered . | . . . . . . . . . . . Exploration Rate (%) 20 | 2 22 27 24 7 71 8 4 18 12 27 Regions Visited 10 Branch Regions 1 Pre-discovered Areas . | . . . . . . . . . . . Known Exits Taken 6 | . . 1 1 . . 1 1 1 1 . Unknown Exits Taken 2 | 1 1 . . . . . . . . . Scrap Searched 1 | . . . . . . . . . . 1 Spaces Dug 14 | . . . . . . . . 11 3 . Terrain Destroyed 14 | . . . . . . . . 11 3 . Melee 14 | . . . . . . . . 11 3 . Projectile . | . . . . . . . . . . . AOE . | . . . . . . . . . . . Terrain Rammed . | . . . . . . . . . . . Walls Destroyed . | . . . . . . . . . . . Machines Disabled . | . . . . . . . . . . . Actions | -11 -10 -9 -8 -7 -7 -7 -6 -5 -4 -4 --------- Run | Yrd Mat Mat Mat Fac Was Fac Fac Fac Fac Upp Total 1970 | . 71 163 161 122 76 209 159 511 372 126 Wait 17 | . . . 5 . 6 1 5 . . . Move 1836 | . 66 147 156 121 70 201 128 479 344 124 Hop 9 | . . . . . . 3 . 1 4 1 Pick Up 11 | . . 1 . 1 . 1 3 3 2 . Fast Attach 20 | . . 3 . . . 2 6 8 1 . Attach 11 | . 2 . . . . 1 1 3 3 1 Detach . | . . . . . . . . . . . Swap . | . . . . . . . . . . . Drop 6 | . 3 . . . . . . 1 2 . Fire . | . . . . . . . . . . . Melee 55 | . . 7 . . . . 16 16 16 . Ram . | . . . . . . . . . . . Kick . | . . . . . . . . . . . Crush 5 | . . 5 . . . . . . . . Escape Stasis . | . . . . . . . . . . . Rewire . | . . . . . . . . . . . Trap . | . . . . . . . . . . . Miscellaneous . | . . . . . . . . . . . Route ------- -11/Scrapyard -10/Materials -9/Materials -8/Materials -7/Factory -7/Waste -7/Factory -6/Factory -5/Factory (discovered 6 exits: *Fac x4 / Upp x2) -4/Factory (discovered 5 exits: Res x4 / *Upp) -4/Upper Caves History --------- Turn | Location | Event 1 | -11/Scrapyard | Discovered new exit (range 0) 1 | -11/Scrapyard | Entered Materials 13 | -10/Materials | Released all parts (6) 38 | -10/Materials | Discovered new exit (range 13) 45 | -10/Materials | Entered another Materials area 45 | -9/Materials | Evolved 2 slots: Utility x2 150 | -9/Materials | Discovered new exit (range 16) 157 | -9/Materials | Identified exit to Materials 158 | -9/Materials | Entered another Materials area 158 | -8/Materials | Evolved 2 slots: Propulsion x2 233 | -8/Materials | Discovered new exit (range 15) 234 | -8/Materials | Core integrity fell below 50% 241 | -8/Materials | Identified exit to Factory 242 | -8/Materials | Entered Factory 242 | -7/Factory | Evolved 2 slots: Utility x2 250 | -7/Factory | Lost 4 parts (2n1u1w) 304 | -7/Factory | Sucked down chute 304 | -7/Factory | Entered Waste 305 | -7/Waste | Joined by Warlord forces that had cleared the area 307 | -7/Waste | Build established: Mutant 335 | -7/Waste | Discovered new exit (range 11) 339 | -7/Waste | Identified exit to Factory 346 | -7/Waste | Entered Factory 346 | -7/Factory | Accompanied by 9 allies 422 | -7/Factory | Discovered new exit (range 15) 428 | -7/Factory | Identified exit to Factory 429 | -7/Factory | Entered another Factory area 429 | -6/Factory | Accompanied by 8 allies 429 | -6/Factory | Evolved 2 slots: Utility x2 489 | -6/Factory | Discovered new exit (range 7) 528 | -6/Factory | Identified exit to Factory 529 | -6/Factory | Entered another Factory area 529 | -5/Factory | Evolved 2 slots: Utility x2 533 | -5/Factory | Lost 6 allies 665 | -5/Factory | Identified exit to Upper Caves 700 | -5/Factory | Identified exit to Factory 719 | -5/Factory | Entered another Factory area 719 | -4/Factory | Evolved 2 slots: Utility x2 822 | -4/Factory | Discovered new exit (range 15) 825 | -4/Factory | Identified exit to Upper Caves 839 | -4/Factory | Identified exit to Research 873 | -4/Factory | Entered Upper Caves 901 | -4/Upper Caves | Learned Research emergency access door positions 902 | -4/Upper Caves | Lost 12 parts (1p3n7u1w) 929 | -4/Upper Caves | Self-destructed Last Messages --------------- 00863_ Slug penetrates Wall. 00864_ Mic. Fission Core destroyed. 00866_ Cesium-ion Thruster destroyed. 00866_ Slug penetrates Wall. 00866_ Slug penetrates Nuclear Reactor. 00867_ Slug penetrates Wall. 00870_ Nuclear Pulse Array destroyed. 00870_ Penetrated by Slug. 00871_ Hacking Suite destroyed. 00872_ K-01 Serf collects debris. LOCATION=UPPER CAVES GOAL=ESCAPE 00890_ M-30 Cleanser reprogrammed Fire Trap. 00901_ Acquired derelict log, extracted data. Data stored: Research emergency access points. 00925_ Searching scrap... 00925_ Found Armor Integrity Analyzer. 00925_ Found Matter Compressor. 00925_ Found Imp. Propulsion Shielding. 00925_ Found 69 Matter. Map ----- +----------------------------------------------------+ | ????????????# #?####?# ## #????????? | | ????????????# ### ### # ### #?????? | | ????????????# ## ##### #?# #?????? | | ???????????## #??## #?## #?????? | | ???????????# #### #???## #??## #?????? | | ???????????# ##??# #????# #????# #?????? | | ???????????# ##???# ## ????? #?????? | | ??????????## ##????# #? #???? #?????? | | ??????????# ##?????# #?### ???? ?????? | | ??????????# ##??????# ###??? ???? ????? | | ??????????# #???????# #???### ??? ???? | | ??????????# ##??????# #??????# ???#??????? | | ????????#### ##?????### #######?# ????????????? | | ???????##" ##?##### ##??????????????? | | ??????## #?# #??????????????? | | ??????#""" #?# ????????????????? | | ??????# "#" ### # ????????????????? | | ??????##### !! # ####" ???????????????? | | ??????????### !% ###"" ??????????????? | | ????????????# ##### "" """ ???????????? | | ????????????## #??## " ???????????? | | ?????????????#######???# " #????????????? | | ???????????????????????# """"" ##????????????? | | ???????????????????????# """"" #?????????????? | | ???????????????????????# "" " #?????????????? | | ???????????????????????# @ " " #?????????????? | | ???????????????????????# "### #?????????????? | | ???????????????????????# "##??????????????????? | | ???????????????????????# ??????????????????? | | ???????????????????????# ????????????????? | | ???????????????????????###########???????????????? | | ?????????????????????????????????????????????????? | | ?????????????????????????????????????????????????? | | ?????????????????????????????????????????????????? | | ?????????????????????????????????????????????????? | | ?????????????????????????????????????????????????? | | ?????????????????????????????????????????????????? | | ?????????????????????????????????????????????????? | | ?????????????????????????????????????????????????? | | ?????????????????????????????????????????????????? | | | | | | | | | | | | | | | | | | | | | +----------------------------------------------------+ Best States ------------- Heat Dissipation 57 Energy Generation 17 Energy Capacity 250 Matter Stores 300 Matter Capacity 300 Sight Range 16 Robot Scan Range 16 Terrain Scan Density 10 Power Amplification 20 Armor Coverage 150 Evasion (%) 64 Targeting Accuracy 8 Recoil Reduction 2 Offensive Hacking 20 Defensive Hacking 20 Item Schematics ----------------- Adv. Hacking Suite | -5/Factory | Hacked Robot Schematics ------------------ None Fabricated ------------ Nothing Repaired ---------- Nothing Alien Tech Used ----------------- None Achievements -------------- None Challenges ------------ None Game ------ Seed WeaponControlLink Manual? 0 Play Time 00:18:13 Cumulative 515.9 hours Start 2025.06.02 @ 19:17:35 End 2025.06.02 @ 19:35:21 Sessions 1 Manual Loads 0 Difficulty Rogue Special Mode None Game No. 564 Rogue 564 Adventurer 0 Explorer 0 Win Type - Total 15 Types 9/0/5/1/0/0/0/0/0/0 Lore% 82 Gallery% 81 Achievement% 82 Wizard Run 0 Options --------- Layout 0 ASCII 0 Keyboard 0 Movement Numpad Keybinds 0 Fullscreen 1 Font 18/SmallcapsGlow Map View 76x50 Zoom Use 0% Tactical HUD 1 Map Filters NONE Filters NONE Steam 1 RUN: 7b019c28-3483-4d29-bd19-035d5ee0367f